fUSD/lending_fUSD_20250623
["ID","MTS","AMOUNT","RATE_DAILY","PERIOD"]
[367253328,1750716674694,-500.0,0.00022739,2]
[367253329,1750716674704,-490.0,0.00022739,2]
[367253330,1750716674713,-1085.67,0.00022739,2]
[367253331,1750716674723,-500.0,0.00022739,2]
[367253332,1750716674732,-500.0,0.00022739,2]
[367253333,1750716674742,-500.0,0.00022739,2]
[367253334,1750716674751,-490.0,0.00022739,2]
[367253335,1750716674760,-500.0,0.00022739,2]
[367253336,1750716674770,-500.0,0.00022739,2]
[367253337,1750716674779,-500.0,0.00022739,2]
[367253338,1750716674788,-500.0,0.00022739,2]
[367253339,1750716674797,-500.0,0.00022739,2]
[367253340,1750716674807,-500.0,0.00022739,2]
[367253341,1750716674816,-500.0,0.00022739,2]
[367253342,1750716674826,-994.0,0.00022739,2]
[367253343,1750716674836,-510.97,0.00022739,2]
[367253344,1750716674847,-863.86,0.00022739,2]
[367253345,1750716674856,-490.0,0.00022739,2]
[367253346,1750716674865,-1710.12,0.00022739,2]
[367253347,1750716674876,-11163.61,0.00022739,2]
[367253348,1750716674888,-630.93,0.00022739,2]
[367253349,1750716674901,-500.0,0.00022739,2]
[367253350,1750716674913,-500.0,0.00022739,2]
[367253351,1750716674923,-500.0,0.00022739,2]
[367253352,1750716674933,-500.0,0.00022739,2]
[367253353,1750716674943,-500.0,0.00022739,2]
[367253354,1750716674953,-587.04,0.00022739,2]
[367253355,1750716674963,-1491.48,0.00022739,2]
[367253356,1750716674972,-803.78,0.00022739,2]
[367253357,1750716674982,-500.0,0.00022739,2]
[367253358,1750716674992,-6185.44,0.00022739,2]
[367253359,1750716675002,-1009.47,0.00022739,2]
[367253360,1750716675012,-741.55,0.00022739,2]
[367253361,1750716675022,-500.0,0.00022739,2]
[367253362,1750716675032,-500.0,0.00022739,2]
[367253363,1750716675042,-500.0,0.00022739,2]
[367253364,1750716675051,-1062.92,0.00022739,2]
[367253365,1750716675061,-500.0,0.00022739,2]
[367253366,1750716675070,-664.97,0.00022739,2]
[367253367,1750716675080,-500.0,0.00022739,2]
[367253368,1750716675090,-500.0,0.00022739,2]
[367253369,1750716675099,-500.0,0.00022739,2]
[367253370,1750716675109,-500.0,0.00022739,2]
[367253371,1750716675119,-500.0,0.00022739,2]
[367253372,1750716675128,-500.0,0.00022739,2]
[367253373,1750716675138,-500.0,0.00022739,2]
[367253374,1750716675148,-500.0,0.00022739,2]
[367253375,1750716675159,-500.0,0.00022739,2]
[367253376,1750716675169,-500.0,0.00022739,2]
[367253377,1750716675178,-500.0,0.00022739,2]
[367253378,1750716675188,-500.0,0.00022739,2]
[367253379,1750716675197,-500.0,0.00022739,2]
[367253380,1750716675207,-1256.25,0.00022739,2]
[367253381,1750716675217,-500.0,0.00022739,2]
[367253382,1750716675227,-500.0,0.00022739,2]
[367253383,1750716675236,-741.0,0.00022739,2]
[367253384,1750716675246,-2072.48,0.00022739,2]
[367253385,1750716675255,-3117.91,0.00022739,2]
[367253386,1750716675265,-513.07,0.00022739,2]
[367253387,1750716675275,-730.65,0.00022739,2]
[367253388,1750716675284,-1836.83,0.00022739,2]
[367253389,1750716675293,-1371.42,0.00022739,2]
[367253390,1750716675303,-3338.91,0.00022739,2]
[367253391,1750716675312,-369.90089629,0.00022739,2]
[367253392,1750716675321,-5203.6,0.00022739,2]
[367253393,1750716675331,-490.0,0.00022739,2]
[367253394,1750716675340,-1093.23,0.00022739,2]
[367253395,1750716675349,-3007.5,0.00022739,2]
[367253396,1750716675358,-538.98,0.00022739,2]
[367253397,1750716675367,-873.23,0.00022739,2]
[367253398,1750716675376,-1120.3,0.00022739,2]
[367253399,1750716675385,-1051.74,0.00022739,2]
[367253400,1750716675395,-490.0,0.00022739,2]
[367253401,1750716675404,-490.0,0.00022739,2]
[367253402,1750716675419,-638.21,0.00022739,2]
[367253403,1750716675428,-826.56,0.00022739,2]
[367253404,1750716675438,-490.0,0.00022739,2]
[367253405,1750716675450,-728.25,0.00022739,2]
[367253406,1750716675459,-490.0,0.00022739,2]
[367253407,1750716675468,-720.26,0.00022739,2]
[367253408,1750716675478,-490.0,0.00022739,2]
[367253409,1750716675487,-1232.67,0.00022739,2]
[367253410,1750716675497,-1973.07,0.00022739,2]
[367253411,1750716675506,-490.0,0.00022739,2]
[367253412,1750716675515,-775.24,0.00022739,2]
[367253413,1750716675525,-914.85,0.00022739,2]
[367253414,1750716675534,-648.4,0.00022739,2]
[367253415,1750716675543,-1100.2,0.00022739,2]
[367253416,1750716675553,-490.0,0.00022739,2]
[367253417,1750716675562,-968.73,0.00022739,2]
[367253418,1750716675572,-490.0,0.00022739,2]
[367253419,1750716675582,-490.0,0.00022739,2]
[367253420,1750716675591,-1764.13,0.00022739,2]
[367253421,1750716675601,-622.94,0.00022739,2]
[367253422,1750716675610,-996.83,0.00022739,2]
[367253423,1750716675620,-1233.46,0.00022739,2]
[367253424,1750716675630,-806.08,0.00022739,2]
[367253425,1750716675639,-836.17,0.00022739,2]
[367253426,1750716675653,-490.0,0.00022739,2]
[367253427,1750716675994,-1358.97,0.00022739,2]
[367253428,1750716676005,-490.0,0.00022739,2]
[367253429,1750716676015,-490.0,0.00022739,2]
[367253430,1750716676025,-1134.8,0.00022739,2]
[367253431,1750716676036,-2557.07,0.00022739,2]
[367253432,1750716676046,-1552.36,0.00022739,2]
[367253433,1750716676056,-490.0,0.00022739,2]
[367253434,1750716676066,-301.46171783,0.00022739,2]
[367253435,1750716676128,-306.07287503,0.00022242,2]
[367253436,1750716676137,-66.26761526,0.00022739,2]
[367253437,1750716676149,-633.92066691,0.00022739,2]
[367253438,1750716676162,-591.95,0.00022739,2]
[367253439,1750716676172,-490.0,0.00022739,2]
[367253440,1750716676181,-642.53,0.00022739,2]
[367253441,1750716676191,-650.66,0.00022739,2]
[367253442,1750716676201,-10931.37,0.00022739,2]
[367253443,1750716676210,-605.31,0.00022739,2]
[367253444,1750716676221,-2684.03,0.00022739,2]
[367253445,1750716676230,-2581.43989943,0.00022739,2]
[367253446,1750716676242,-1580.0000001,0.00022739,2]
[367253447,1750716676254,-104.67010047,0.00022739,2]
[367253448,1750716676264,-578.89,0.00022739,2]
[367253449,1750716676273,-490.0,0.00022739,2]
[367253450,1750716676282,-824.02221561,0.00022739,2]
[367253451,1750716676295,-1620.32778439,0.00022739,2]
[367253452,1750716676305,-816.24,0.00022739,2]
[367253453,1750716676315,-490.0,0.00022739,2]
[367253454,1750716676324,-770.42,0.00022739,2]
[367253455,1750716676333,-370.51221561,0.00022739,2]
[367253456,1750716676356,-466.69778439,0.00022739,2]
[367253457,1750716676365,-287.61661081,0.00022739,2]
[367253458,1750716676377,-681.29338919,0.00022739,2]
[367253459,1750716676386,-1526.14,0.00022739,2]
[367253460,1750716676396,-650.09,0.00022739,2]
[367253461,1750716676405,-142.47661081,0.00022739,2]
[367253462,1750716676419,-300.00001,0.00022739,2]
[367253463,1750716676446,-158.94337919,0.00022739,2]
[367253464,1750716676460,-368.61182208,0.00022739,2]
[367253465,1750716676471,-5493.35817792,0.00022739,2]
[367253466,1750716676481,-540.47,0.00022739,2]
[367253467,1750716676491,-490.0,0.00022739,2]
[367253468,1750716676501,-645.94,0.00022739,2]
[367253469,1750716676510,-877.5,0.00022739,2]
[367253470,1750716676520,-975.84,0.00022739,2]
[367253471,1750716676530,-667.73,0.00022739,2]
[367253472,1750716676540,-1612.42107925,0.00022739,2]
[367253473,1750716677968,-202.0,0.00019886,2]
[367253474,1750716677977,-400.70122791,0.00021817,2]
[367253475,1750716677987,-490.0,0.00021917,2]
[367253476,1750716677998,-523.29,0.00021917,2]
[367253477,1750716678008,-220.19,0.00021917,2]
[367253478,1750716678017,-490.0,0.00021917,2]
[367253479,1750716678026,-490.0,0.00021917,2]
[367253480,1750716678036,-841.01,0.00021917,2]
[367253481,1750716678045,-490.0,0.00021917,2]
[367253482,1750716678056,-2326.20984497,0.00021917,2]
[367253483,1750716678139,-1026.12148902,0.00021917,2]
[367253484,1750716678156,-687.33,0.00021917,2]
[367253485,1750716678204,-5050.26866601,0.00021917,2]
[367253486,1750716678213,-490.0,0.00022191,2]
[367253487,1750716678223,-677.95223948,0.00022191,2]
[367253488,1750716678297,-490.0,0.00021917,2]
[367253489,1750716678307,-163.05776052,0.00022191,2]
[367253490,1750716678316,-490.0,0.00022191,2]
[367253491,1750716678325,-885.0,0.00022358,2]
[367253492,1750716678335,-335.78,0.00022465,2]
[367253493,1750716678345,-841.01,0.00022465,2]
[367253494,1750716678355,-490.0,0.00022465,2]
[367253495,1750716678364,-306.07287503,0.00022669,2]
[367253496,1750716678373,-781.80892075,0.00022739,2]
[367253497,1750716678383,-490.0,0.00022739,2]
[367253498,1750716678392,-490.0,0.00022739,2]
[367253499,1750716678402,-490.0,0.00022739,2]
[367253500,1750716678415,-1765.27,0.00022739,2]
[367253501,1750716678425,-3860.29,0.00022739,2]
[367253502,1750716678435,-747.28,0.00022739,2]
[367253503,1750716678444,-719.92,0.00022739,2]
[367253504,1750716678454,-736.45,0.00022739,2]
[367253505,1750716678463,-712.29,0.00022739,2]
[367253506,1750716678472,-490.0,0.00022739,2]
[367253507,1750716678482,-490.0,0.00022739,2]
[367253508,1750716678491,-490.0,0.00022739,2]
[367253509,1750716678501,-2016.06,0.00022739,2]
[367253510,1750716678510,-1254.06,0.00022739,2]
[367253511,1750716678519,-490.0,0.00022739,2]
[367253512,1750716678529,-1146.92,0.00022739,2]
[367253513,1750716678538,-4772.66,0.00022739,2]
[367253514,1750716678549,-490.0,0.00022739,2]
[367253515,1750716678559,-1719.73,0.00022739,2]
[367253516,1750716678569,-559.03,0.00022739,2]
[367253517,1750716678578,-715.85,0.00022739,2]
[367253518,1750716678587,-538.11,0.00022739,2]
[367253519,1750716678596,-997.45,0.00022739,2]
[367253520,1750716678605,-490.0,0.00022739,2]
[367253521,1750716678614,-490.0,0.00022739,2]
[367253522,1750716678623,-642.99,0.00022739,2]
[367253523,1750716678632,-1330.71,0.00022739,2]
[367253524,1750716678641,-4435.67,0.00022739,2]
[367253525,1750716678651,-1664.4,0.00022739,2]
[367253526,1750716678664,-490.0,0.00022739,2]
[367253527,1750716678676,-530.34,0.00022739,2]
[367253528,1750716678686,-490.0,0.00022739,2]
[367253529,1750716678696,-683.74,0.00022739,2]
[367253530,1750716678707,-655.02,0.00022739,2]
[367253531,1750716678716,-612.07,0.00022739,2]
[367253532,1750716678725,-796.62,0.00022739,2]
[367253533,1750716678734,-3015.27,0.00022739,2]
[367253534,1750716678743,-490.0,0.00022739,2]
[367253535,1750716678753,-490.0,0.00022739,2]
[367253536,1750716678761,-619.12,0.00022739,2]
[367253537,1750716678771,-490.0,0.00022739,2]
[367253538,1750716678780,-1260.63,0.00022739,2]
[367253539,1750716678789,-694.56,0.00022739,2]
[367253540,1750716678799,-1043.72,0.00022739,2]
[367253541,1750716678809,-640.53,0.00022739,2]
[367253542,1750716678818,-490.0,0.00022739,2]
[367253543,1750716678827,-881.24,0.00022739,2]
[367253544,1750716678837,-5933.42,0.00022739,2]
[367253545,1750716678847,-7643.03,0.00022739,2]
[367253546,1750716678856,-704.32,0.00022739,2]
[367253547,1750716678865,-2268.15,0.00022739,2]
[367253548,1750716678874,-490.0,0.00022739,2]
[367253549,1750716678884,-490.0,0.00022739,2]
[367253550,1750716678893,-2228.62,0.00022739,2]
[367253551,1750716678903,-1019.9,0.00022739,2]
[367253552,1750716678914,-1763.37,0.00022739,2]
[367253553,1750716678924,-993.32,0.00022739,2]
[367253554,1750716678933,-490.0,0.00022739,2]
[367253555,1750716678943,-1055.29,0.00022739,2]
[367253556,1750716678953,-2596.73,0.00022739,2]
[367253557,1750716678964,-915.99,0.00022739,2]
[367253558,1750716678974,-814.49,0.00022739,2]
[367253559,1750716678984,-623.87477456,0.00022739,2]
[367253560,1750716678994,-1497.4,0.00022739,2]
[367253561,1750716679003,-1282.9,0.00022739,2]
[367253562,1750716679014,-993.79,0.00022739,2]
[367253563,1750716679024,-700.64,0.00022739,2]
[367253564,1750716679033,-490.0,0.00022739,2]
[367253565,1750716679043,-626.52,0.00022739,2]
[367253566,1750716679052,-490.0,0.00022739,2]
[367253567,1750716679062,-490.0,0.00022739,2]
[367253568,1750716679071,-560.43,0.00022739,2]
[367253569,1750716679082,-1160.48,0.00022739,2]
[367253570,1750716679091,-1076.12,0.00022739,2]
[367253571,1750716679101,-1694.87,0.00022739,2]
[367253572,1750716679110,-490.0,0.00022739,2]
[367253573,1750716679120,-2678.78,0.00022739,2]
[367253574,1750716679130,-1047.67,0.00022739,2]
[367253575,1750716679139,-490.0,0.00022739,2]
[367253576,1750716679149,-1304.01,0.00022739,2]
[367253577,1750716679161,-610.8,0.00022739,2]
[367253578,1750716679170,-1949.79,0.00022739,2]
[367253579,1750716679180,-1295.84,0.00022739,2]
[367253580,1750716679190,-611.43,0.00022739,2]
[367253581,1750716679200,-3522.84,0.00022739,2]
[367253582,1750716679210,-1538.22,0.00022739,2]
[367253583,1750716679219,-490.0,0.00022739,2]
[367253584,1750716679229,-1319.53,0.00022739,2]
[367253585,1750716679238,-1206.38,0.00022739,2]
[367253586,1750716679248,-490.0,0.00022739,2]
[367253587,1750716679257,-1202.1,0.00022739,2]
[367253588,1750716679267,-1066.92,0.00022739,2]
[367253589,1750716679276,-490.0,0.00022739,2]
[367253590,1750716679285,-3217.12,0.00022739,2]
[367253591,1750716679295,-1034.4,0.00022739,2]
[367253592,1750716679304,-799.02,0.00022739,2]
[367253593,1750716679314,-674.64,0.00022739,2]
[367253594,1750716679323,-769.74,0.00022739,2]
[367253595,1750716679333,-1055.05,0.00022739,2]
[367253596,1750716679342,-1185.09,0.00022739,2]
[367253597,1750716679351,-3735.81,0.00022739,2]
[367253598,1750716679360,-874.13,0.00022739,2]
[367253599,1750716679370,-1809.35,0.00022739,2]
[367253600,1750716679379,-603.01,0.00022739,2]
[367253601,1750716679391,-1100.65,0.00022739,2]
[367253602,1750716679400,-3794.74,0.00022739,2]
[367253603,1750716679412,-1084.22,0.00022739,2]
[367253604,1750716679421,-593.74,0.00022739,2]
[367253605,1750716679431,-10870.02,0.00022739,2]
[367253606,1750716679440,-490.0,0.00022739,2]
[367253607,1750716679450,-490.0,0.00022739,2]
[367253608,1750716679459,-848.33,0.00022739,2]
[367253609,1750716679468,-118889.8,0.00022739,2]
[367253610,1750716679477,-921.56,0.00022739,2]
[367253611,1750716679486,-657.34,0.00022739,2]
[367253612,1750716679496,-611.32,0.00022739,2]
[367253613,1750716679505,-748.08,0.00022739,2]
[367253614,1750716679515,-1763.03,0.00022739,2]
[367253615,1750716679524,-490.0,0.00022739,2]
[367253616,1750716679534,-1674.68,0.00022739,2]
[367253617,1750716679543,-620.37,0.00022739,2]
[367253618,1750716679553,-1267.31,0.00022739,2]
[367253619,1750716679563,-490.0,0.00022739,2]
[367253620,1750716679572,-1938.67,0.00022739,2]
[367253621,1750716679582,-1155.03,0.00022739,2]
[367253622,1750716679592,-840.05,0.00022739,2]
[367253623,1750716679601,-490.0,0.00022739,2]
[367253624,1750716679611,-490.0,0.00022739,2]
[367253625,1750716679622,-683.03,0.00022739,2]
[367253626,1750716679632,-1196.89,0.00022739,2]
[367253627,1750716679641,-490.0,0.00022739,2]
[367253628,1750716679652,-789.0,0.00022739,2]
[367253629,1750716679665,-490.0,0.00022739,2]
[367253630,1750716679676,-1378.2,0.00022739,2]
[367253631,1750716679686,-1223.67,0.00022739,2]
[367253632,1750716679695,-939.46,0.00022739,2]
[367253633,1750716679704,-986.43,0.00022739,2]
[367253634,1750716679714,-490.0,0.00022739,2]
[367253635,1750716679723,-924.17,0.00022739,2]
[367253636,1750716679734,-841.01,0.00022739,2]
[367253637,1750716679744,-283.76,0.00022739,2]
[367253638,1750716679753,-37865.72076094,0.00022744,2]
[367253639,1750716679762,-37865.72076094,0.00022756,2]
[367253640,1750716679772,-150.0,0.0002276,2]
[367253641,1750716679782,-588.41787953,0.00022773,2]
[367253642,1750716679791,-500.0,0.00022773,2]
[367253643,1750716679801,-500.0,0.00022773,2]
[367253644,1750716679811,-500.0,0.00022773,2]
[367253645,1750716679820,-500.0,0.00022773,2]
[367253646,1750716679831,-158.14584381,0.00022777,2]
[367253647,1750716679841,-8597.46470426,0.0002278,2]
[367253648,1750716679850,-420.76736015,0.00022781,2]
[367253649,1750716679860,-1157.69523303,0.00022789,10]
[367253650,1750716679870,-39999.323185,0.00022793,2]
[367253651,1750716679881,-420.76736015,0.00022796,2]
[367253652,1750716679891,-1564.55441126,0.000228,7]
[367253653,1750716679900,-2934.28,0.000228,2]
[367253654,1750716679913,-2000.0,0.000228,2]
[367253655,1750716679922,-1300.0,0.000228,8]
[367253656,1750716679933,-200.0,0.00022807,2]
[367253657,1750716679942,-2000.0,0.0002281,2]
[367253658,1750716679952,-37865.72076094,0.00022811,2]
[367253659,1750716679962,-152.11553468,0.00022813,2]
[367253660,1750716679971,-42472.92062002,0.00022817,2]
[367253661,1750716679981,-3962.000436,0.0002282,2]
[367253662,1750716679991,-4121.66602254,0.0002282,2]
[367253663,1750716680000,-150.0,0.00022822,2]
[367253664,1750716680010,-150.0,0.00022831,2]
[367253665,1750716680021,-150.0,0.00022834,2]
[367253666,1750716680030,-150.0,0.00022836,2]
[367253667,1750716680041,-150.0,0.00022836,2]
[367253668,1750716680051,-150.0,0.00022839,2]
[367253669,1750716680061,-4321.917,0.0002285,2]
[367253670,1750716680071,-163.787,0.0002285,2]
[367253671,1750716680081,-1000.0,0.00022862,2]
[367253672,1750716680091,-37865.72076094,0.00022864,2]
[367253673,1750716680100,-37865.72076094,0.0002287,2]
[367253674,1750716680109,-1279.543653,0.00022877,4]
[367253675,1750716680119,-422.62988899,0.0002288,2]
[367253676,1750716680128,-420.76736015,0.00022883,2]
[367253677,1750716680137,-150.0,0.00022886,2]
[367253678,1750716680147,-210.59496853,0.00022887,2]
[367253679,1750716680159,-150.0,0.00022891,2]
[367253680,1750716680167,-420.76736015,0.00022892,2]
[367253681,1750716680176,-150.0,0.000229,2]
[367253682,1750716680185,-200.0,0.000229,8]
[367253683,1750716680195,-150.0,0.00022906,2]
[367253684,1750716680204,-8597.46470426,0.00022913,2]
[367253685,1750716680213,-150.0,0.0002292,2]
[367253686,1750716680223,-150.0,0.00022921,2]
[367253687,1750716680232,-150.0,0.00022921,2]
[367253688,1750716680241,-150.0,0.00022921,2]
[367253689,1750716680251,-180.0,0.0002293,2]
[367253690,1750716680260,-150.0,0.0002293,2]
[367253691,1750716680269,-300.68,0.00022935,2]
[367253692,1750716680278,-150.0,0.00022938,2]
[367253693,1750716680288,-193.313,0.00022938,2]
[367253694,1750716680297,-240.448,0.00022938,2]
[367253695,1750716680307,-180.388,0.00022938,2]
[367253696,1750716680316,-150.0,0.00022938,2]
[367253697,1750716680326,-150.0,0.00022938,2]
[367253698,1750716680336,-155.469,0.00022938,2]
[367253699,1750716680345,-947.0,0.00022938,2]
[367253700,1750716680354,-638.0,0.00022938,2]
[367253701,1750716680363,-871.079,0.00022938,2]
[367253702,1750716680372,-150.0,0.00022952,2]
[367253703,1750716680382,-150.0,0.00022957,2]
[367253704,1750716680391,-210.0,0.0002296,2]
[367253705,1750716680400,-1300.0,0.00022964,2]
[367253706,1750716680412,-500.0,0.00022964,2]
[367253707,1750716680421,-500.0,0.00022964,2]
[367253708,1750716680431,-1000.0,0.0002297,2]
[367253709,1750716680440,-1700.0,0.0002297,2]
[367253710,1750716680450,-150.0,0.00022974,2]
[367253711,1750716680460,-250.0,0.0002299,2]
[367253712,1750716680469,-13020.1112008,0.00022997,2]
[367253713,1750716680478,-663.6158479,0.00022997,2]
[367253714,1750716680487,-188609.9532935,0.00022997,2]
[367253715,1750716680497,-4389.7129209,0.00022997,2]
[367253716,1750716680506,-150.0,0.00023002,2]
[367253717,1750716680516,-270.37305814,0.00023004,2]
[367253718,1750716680525,-150.0,0.00023006,2]
[367253719,1750716680535,-490.0,0.00023013,2]
[367253720,1750716680544,-603.32,0.00023013,2]
[367253721,1750716680553,-490.0,0.00023013,2]
[367253722,1750716680562,-555.66,0.00023013,2]
[367253723,1750716680571,-563.46,0.00023013,2]
[367253724,1750716680581,-490.0,0.00023013,2]
[367253725,1750716680590,-753.72,0.00023013,2]
[367253726,1750716680599,-803.48,0.00023013,2]
[367253727,1750716680608,-647.25,0.00023013,2]
[367253728,1750716680618,-490.0,0.00023013,2]
[367253729,1750716680627,-490.0,0.00023013,2]
[367253730,1750716680636,-490.0,0.00023013,2]
[367253731,1750716680649,-490.0,0.00023013,2]
[367253732,1750716680661,-490.0,0.00023013,2]
[367253733,1750716680671,-490.0,0.00023013,2]
[367253734,1750716680680,-490.0,0.00023013,2]
[367253735,1750716680690,-490.0,0.00023013,2]
[367253736,1750716680700,-517.36,0.00023013,2]
[367253737,1750716680711,-490.0,0.00023013,2]
[367253738,1750716680720,-509.4,0.00023013,2]
[367253739,1750716680730,-578.82,0.00023013,2]
[367253740,1750716680740,-490.0,0.00023013,2]
[367253741,1750716680751,-490.0,0.00023013,2]
[367253742,1750716680762,-490.0,0.00023013,2]
[367253743,1750716680773,-490.0,0.00023013,2]
[367253744,1750716680783,-632.16,0.00023013,2]
[367253745,1750716680792,-490.0,0.00023013,2]
[367253746,1750716680801,-490.0,0.00023013,2]
[367253747,1750716680810,-490.0,0.00023013,2]
[367253748,1750716680819,-667.39,0.00023013,2]
[367253749,1750716680828,-985.54,0.00023013,2]
[367253750,1750716680837,-687.98,0.00023013,2]
[367253751,1750716680846,-659.33,0.00023013,2]
[367253752,1750716680855,-667.22,0.00023013,2]
[367253753,1750716680864,-490.0,0.00023013,2]
[367253754,1750716680874,-490.0,0.00023013,2]
[367253755,1750716680883,-548.73,0.00023013,2]
[367253756,1750716680893,-490.0,0.00023013,2]
[367253757,1750716680902,-490.0,0.00023013,2]
[367253758,1750716680912,-490.0,0.00023013,2]
[367253759,1750716680921,-490.0,0.00023013,2]
[367253760,1750716680931,-490.0,0.00023013,2]
[367253761,1750716680940,-300.0,0.00023013,2]
[367253762,1750716680949,-510.14,0.00023013,2]
[367253763,1750716680959,-506.47,0.00023013,2]
[367253764,1750716680969,-568.52,0.00023013,2]
[367253765,1750716680978,-849.42,0.00023013,2]
[367253766,1750716680988,-587.48,0.00023013,2]
[367253767,1750716680997,-490.0,0.00023013,2]
[367253768,1750716681007,-490.0,0.00023013,2]
[367253769,1750716681016,-736.18,0.00023013,2]
[367253770,1750716681026,-490.0,0.00023013,2]
[367253771,1750716681035,-490.0,0.00023013,2]
[367253772,1750716681044,-490.0,0.00023013,2]
[367253773,1750716681054,-490.0,0.00023013,2]
[367253774,1750716681063,-906.29,0.00023013,2]
[367253775,1750716681072,-490.0,0.00023013,2]
[367253776,1750716681082,-490.0,0.00023013,2]
[367253777,1750716681091,-490.0,0.00023013,2]
[367253778,1750716681101,-490.0,0.00023013,2]
[367253779,1750716681110,-634.1,0.00023013,2]
[367253780,1750716681120,-241.20357252,0.00023013,2]
[367253781,1750716681129,-490.0,0.00023013,2]
[367253782,1750716681139,-490.0,0.00023013,2]
[367253783,1750716681148,-490.0,0.00023013,2]
[367253784,1750716681160,-490.0,0.00023013,2]
[367253785,1750716681169,-868.08,0.00023013,2]
[367253786,1750716681179,-555.85187772,0.00023013,2]
[367253787,1750716681189,-731.96,0.00023013,2]
[367253788,1750716681199,-490.0,0.00023013,2]
[367253789,1750716681209,-546.9,0.00023013,2]
[367253790,1750716681218,-490.0,0.00023013,2]
[367253791,1750716681227,-490.0,0.00023013,2]
[367253792,1750716681236,-1263.18,0.00023013,2]
[367253793,1750716681245,-490.0,0.00023013,2]
[367253794,1750716681254,-490.0,0.00023013,2]
[367253795,1750716681264,-490.0,0.00023013,2]
[367253796,1750716681273,-490.0,0.00023013,2]
[367253797,1750716681282,-684.33,0.00023013,2]
[367253798,1750716681291,-907.85,0.00023013,2]
[367253799,1750716681300,-250.0,0.00023013,2]
[367253800,1750716681310,-490.0,0.00023013,2]
[367253801,1750716681319,-689.15,0.00023013,2]
[367253802,1750716681329,-500.0,0.00023013,2]
[367253803,1750716681338,-490.0,0.00023013,2]
[367253804,1750716681347,-490.0,0.00023013,2]
[367253805,1750716681357,-490.0,0.00023013,2]
[367253806,1750716681366,-680.89,0.00023013,2]
[367253807,1750716681376,-898.43,0.00023013,2]
[367253808,1750716681385,-534.48,0.00023013,2]
[367253809,1750716681395,-813.42,0.00023013,2]
[367253810,1750716681404,-490.0,0.00023013,2]
[367253811,1750716681417,-636.28,0.00023013,2]
[367253812,1750716681427,-490.0,0.00023013,2]
[367253813,1750716681437,-490.0,0.00023013,2]
[367253814,1750716681446,-624.6,0.00023013,2]
[367253815,1750716681456,-490.0,0.00023013,2]
[367253816,1750716681465,-490.0,0.00023013,2]
[367253817,1750716681475,-490.0,0.00023013,2]
[367253818,1750716681484,-490.0,0.00023013,2]
[367253819,1750716681493,-1120.25,0.00023013,2]
[367253820,1750716681502,-490.0,0.00023013,2]
[367253821,1750716681512,-490.0,0.00023013,2]
[367253822,1750716681522,-891.13,0.00023013,2]
[367253823,1750716681531,-644.99,0.00023013,2]
[367253824,1750716681541,-889.82,0.00023013,2]
[367253825,1750716681550,-490.0,0.00023013,2]
[367253826,1750716681559,-490.0,0.00023013,2]
[367253827,1750716681569,-490.0,0.00023013,2]